[Event "*** Titled Tuesday Blitz"]
[Site "Chess.com"]
[Date "2021.03.09"]
[Round "10"]
[White "exoticprincess"]
[Black "jposthuma"]
[Result "1-0"]
[WhiteElo "2880"]
[BlackElo "2679"]
[TimeControl "180+1"]
[EndTime "12:02:16 PST"]
[Termination "exoticprincess won by checkmate"]

1. e4 {[%clk 0:03:00.9]} 1... c6 {[%clk 0:02:59.9]} 2. c4 {[%clk 0:02:55.4]}
2... d5 {[%clk 0:03:00.8]} 3. cxd5 {[%clk 0:02:56.3]} 3... cxd5 {[%clk
0:03:01.7]} 4. exd5 {[%clk 0:02:57.2]} 4... Nf6 {[%clk 0:03:02]} 5. Qa4+ {[%clk
0:02:57.4]} 5... Nbd7 {[%clk 0:03:01.1]} 6. Nc3 {[%clk 0:02:57.9]} 6... g6
{[%clk 0:03:01.5]} 7. Nf3 {[%clk 0:02:58.5]} 7... Bg7 {[%clk 0:03:01.7]} 8. Bc4
{[%clk 0:02:59.1]} 8... O-O {[%clk 0:03:01.2]} 9. d3 {[%clk 0:02:59.3]} 9... a6
{[%clk 0:02:24.8]} 10. Qa3 {[%clk 0:02:58.7]} 10... b6 {[%clk 0:02:14.9]} 11.
O-O {[%clk 0:02:57.8]} 11... Bb7 {[%clk 0:02:14.9]} 12. Re1 {[%clk 0:02:57.6]}
12... Re8 {[%clk 0:02:09.1]} 13. Be3 {[%clk 0:02:56.5]} 13... b5 {[%clk
0:01:57.9]} 14. Bb3 {[%clk 0:02:55.8]} 14... Nb6 {[%clk 0:01:47]} 15. d6 {[%clk
0:02:55.1]} 15... exd6 {[%clk 0:01:40.9]} 16. Ng5 {[%clk 0:02:29.2]} 16... d5
{[%clk 0:01:40.8]} 17. Qa5 {[%clk 0:02:05.5]} 17... Nbd7 {[%clk 0:01:24.4]} 18.
Qxd8 {[%clk 0:02:06.4]} 18... Raxd8 {[%clk 0:01:24.2]} 19. Bd4 {[%clk
0:02:03.3]} 19... Nf8 {[%clk 0:01:12.8]} 20. a4 {[%clk 0:01:44.6]} 20... b4
{[%clk 0:01:11]} 21. Na2 {[%clk 0:01:44.2]} 21... h6 {[%clk 0:00:59.2]} 22. Nf3
{[%clk 0:01:43]} 22... Ne6 {[%clk 0:00:49.2]} 23. Nxb4 {[%clk 0:00:56.5]} 23...
Nxd4 {[%clk 0:00:41.5]} 24. Nxd4 {[%clk 0:00:57.4]} 24... Ng4 {[%clk 0:00:26.7]}
25. Nbc6 {[%clk 0:00:51.1]} 25... Rxe1+ {[%clk 0:00:22.6]} 26. Rxe1 {[%clk
0:00:49.9]} 26... Bxc6 {[%clk 0:00:21.6]} 27. Nxc6 {[%clk 0:00:50.8]} 27... Rd6
{[%clk 0:00:19.6]} 28. Bxd5 {[%clk 0:00:49.7]} 28... Bxb2 {[%clk 0:00:17.4]} 29.
g3 {[%clk 0:00:34.6]} 29... Kg7 {[%clk 0:00:16]} 30. Bf3 {[%clk 0:00:34.3]}
30... Nf6 {[%clk 0:00:09.2]} 31. Rb1 {[%clk 0:00:33.3]} 31... Rxd3 {[%clk
0:00:08.1]} 32. Rxb2 {[%clk 0:00:22.6]} 32... Rxf3 {[%clk 0:00:08.3]} 33. Ne5
{[%clk 0:00:23]} 33... Ra3 {[%clk 0:00:08.1]} 34. Rb7 {[%clk 0:00:22.3]} 34...
Ne4 {[%clk 0:00:07.1]} 35. Rxf7+ {[%clk 0:00:22]} 35... Kg8 {[%clk 0:00:07.7]}
36. Ra7 {[%clk 0:00:20.7]} 36... Rxa4 {[%clk 0:00:04.8]} 37. Nxg6 {[%clk
0:00:20.9]} 37... Ra1+ {[%clk 0:00:05.1]} 38. Kg2 {[%clk 0:00:21.3]} 38... Ra2
{[%clk 0:00:06]} 39. Kf3 {[%clk 0:00:21.3]} 39... Nxf2 {[%clk 0:00:05.6]} 40.
Kf4 {[%clk 0:00:20.9]} 40... Nd3+ {[%clk 0:00:04.1]} 41. Kg4 {[%clk 0:00:21.2]}
41... Rxh2 {[%clk 0:00:02.7]} 42. Rxa6 {[%clk 0:00:19.3]} 42... Re2 {[%clk
0:00:02.3]} 43. Kh5 {[%clk 0:00:18.3]} 43... Rh2+ {[%clk 0:00:01.9]} 44. Nh4
{[%clk 0:00:18.6]} 44... Rh3 {[%clk 0:00:01.3]} 45. Rg6+ {[%clk 0:00:16]} 45...
Kf7 {[%clk 0:00:01.8]} 46. Kxh6 {[%clk 0:00:15.6]} 46... Ne5 {[%clk 0:00:02.1]}
47. Rg7+ {[%clk 0:00:13.7]} 47... Kf6 {[%clk 0:00:02.3]} 48. Kh7 {[%clk
0:00:13.4]} 48... Nf7 {[%clk 0:00:02.1]} 49. Rg6+ {[%clk 0:00:13.5]} 49... Ke7
{[%clk 0:00:02.7]} 50. Kg7 {[%clk 0:00:13.6]} 50... Ne5 {[%clk 0:00:02.6]} 51.
Nf5+ {[%clk 0:00:13.7]} 51... Kd7 {[%clk 0:00:01.9]} 52. Rd6+ {[%clk 0:00:13.9]}
52... Kc7 {[%clk 0:00:02.6]} 53. Re6 {[%clk 0:00:14.8]} 53... Ng4 {[%clk
0:00:02.2]} 54. Kg6 {[%clk 0:00:14.6]} 54... Nf2 {[%clk 0:00:01.4]} 55. Kg5
{[%clk 0:00:14.5]} 55... Rh8 {[%clk 0:00:01.4]} 56. Kf4 {[%clk 0:00:13.3]} 56...
Kd7 {[%clk 0:00:01.9]} 57. Re7+ {[%clk 0:00:12.2]} 57... Kd8 {[%clk 0:00:02.5]}
58. Re2 {[%clk 0:00:12.3]} 58... Nh3+ {[%clk 0:00:03.1]} 59. Kg4 {[%clk
0:00:12.2]} 59... Ng1 {[%clk 0:00:03.4]} 60. Rg2 {[%clk 0:00:11.7]} 60... Rh1
{[%clk 0:00:03.4]} 61. Nd4 {[%clk 0:00:08.9]} 61... Nh3 {[%clk 0:00:03.9]} 62.
Nf3 {[%clk 0:00:07.4]} 62... Kd7 {[%clk 0:00:03.5]} 63. Rd2+ {[%clk 0:00:05.9]}
63... Ke7 {[%clk 0:00:03.3]} 64. Re2+ {[%clk 0:00:05.8]} 64... Kf6 {[%clk
0:00:03.8]} 65. Ra2 {[%clk 0:00:05.3]} 65... Ng1 {[%clk 0:00:03]} 66. Ra1 {[%clk
0:00:04.6]} 66... Nh3 {[%clk 0:00:03.5]} 67. Ra6+ {[%clk 0:00:03.3]} 67... Kg7
{[%clk 0:00:03.2]} 68. Ra7+ {[%clk 0:00:03.5]} 68... Kf6 {[%clk 0:00:03.1]} 69.
Ra6+ {[%clk 0:00:04.4]} 69... Kg7 {[%clk 0:00:03.7]} 70. Kf5 {[%clk 0:00:04.5]}
70... Nf2 {[%clk 0:00:03.6]} 71. Ra2 {[%clk 0:00:03]} 71... Nh3 {[%clk
0:00:03.4]} 72. g4 {[%clk 0:00:02.2]} 72... Rf1 {[%clk 0:00:03.7]} 73. Ke4
{[%clk 0:00:02.5]} 73... Rf2 {[%clk 0:00:02.7]} 74. Ra7+ {[%clk 0:00:01.8]}
74... Kf6 {[%clk 0:00:03]} 75. Ra6+ {[%clk 0:00:02.7]} 75... Kg7 {[%clk
0:00:03.6]} 76. Ne5 {[%clk 0:00:02.8]} 76... Re2+ {[%clk 0:00:03.3]} 77. Kd5
{[%clk 0:00:03]} 77... Nf4+ {[%clk 0:00:03.2]} 78. Kd4 {[%clk 0:00:03.2]} 78...
Re1 {[%clk 0:00:02.5]} 79. Ra7+ {[%clk 0:00:02.7]} 79... Kf6 {[%clk 0:00:02.7]}
80. Ra6+ {[%clk 0:00:03.6]} 80... Kg5 {[%clk 0:00:03]} 81. Nf3+ {[%clk 0:00:03]}
81... Kxg4 {[%clk 0:00:03.5]} 82. Nxe1 {[%clk 0:00:03.9]} 82... Ne2+ {[%clk
0:00:03.5]} 83. Ke3 {[%clk 0:00:03.9]} 83... Nf4 {[%clk 0:00:04.4]} 84. Nd3
{[%clk 0:00:04.1]} 84... Ng2+ {[%clk 0:00:04.4]} 85. Kd4 {[%clk 0:00:04.1]}
85... Nh4 {[%clk 0:00:05.3]} 86. Ra4 {[%clk 0:00:04.5]} 86... Nf5+ {[%clk
0:00:05.3]} 87. Kc3+ {[%clk 0:00:05.4]} 87... Kg5 {[%clk 0:00:06.1]} 88. Nb4
{[%clk 0:00:05.6]} 88... Kf6 {[%clk 0:00:07]} 89. Ra5 {[%clk 0:00:06.4]} 89...
Ke6 {[%clk 0:00:07.2]} 90. Nd5 {[%clk 0:00:07.3]} 90... Nd6 {[%clk 0:00:07.2]}
91. Nf4+ {[%clk 0:00:07.5]} 91... Kd7 {[%clk 0:00:07.1]} 92. Ra6 {[%clk
0:00:07.8]} 92... Nb5+ {[%clk 0:00:06.9]} 93. Kd3 {[%clk 0:00:07.9]} 93... Nc7
{[%clk 0:00:06.5]} 94. Rh6 {[%clk 0:00:08.8]} 94... Ke7 {[%clk 0:00:06.3]} 95.
Ke4 {[%clk 0:00:08.9]} 95... Kd7 {[%clk 0:00:05.5]} 96. Ke5 {[%clk 0:00:09]}
96... Kc8 {[%clk 0:00:05.9]} 97. Nd5 {[%clk 0:00:08.8]} 97... Nb5 {[%clk
0:00:05.7]} 98. Rh7 {[%clk 0:00:09]} 98... Kb8 {[%clk 0:00:04.4]} 99. Nb4 {[%clk
0:00:08.3]} 99... Nc7 {[%clk 0:00:03.7]} 100. Nc6+ {[%clk 0:00:07.8]} 100... Kc8
{[%clk 0:00:03.8]} 101. Na7+ {[%clk 0:00:07.5]} 101... Kb8 {[%clk 0:00:03.8]}
102. Nc6+ {[%clk 0:00:07.4]} 102... Kc8 {[%clk 0:00:04.4]} 103. Kd6 {[%clk
0:00:07.6]} 103... Nb5+ {[%clk 0:00:01.8]} 104. Kc5 {[%clk 0:00:07.5]} 104...
Nc7 {[%clk 0:00:02.4]} 105. Rf7 {[%clk 0:00:06.1]} 105... Ne6+ {[%clk
0:00:01.6]} 106. Kb6 {[%clk 0:00:06]} 106... Nd8 {[%clk 0:00:01.5]} 107. Rc7#
{[%clk 0:00:06.2]} 1-0

[Event "*** Titled Tuesday Blitz"]
[Site "Chess.com"]
[Date "2021.03.09"]
[Round "10"]
[White "Lupul_Cenusiu"]
[Black "Vanina1989"]
[Result "1/2-1/2"]
[WhiteElo "2576"]
[BlackElo "2732"]
[TimeControl "180+1"]
[EndTime "12:02:21 PST"]
[Termination "Game drawn by 50-move rule"]

1. d4 {[%clk 0:03:00.9]} 1... d5 {[%clk 0:02:59.5]} 2. c4 {[%clk 0:03:00.6]}
2... c6 {[%clk 0:02:59.8]} 3. Nc3 {[%clk 0:02:59.2]} 3... Nf6 {[%clk 0:02:58.9]}
4. Nf3 {[%clk 0:02:59]} 4... dxc4 {[%clk 0:02:57.1]} 5. g3 {[%clk 0:02:59.1]}
5... Bf5 {[%clk 0:02:55.8]} 6. Bg2 {[%clk 0:02:57.7]} 6... e6 {[%clk 0:02:56.1]}
7. Ne5 {[%clk 0:02:53.5]} 7... Bb4 {[%clk 0:02:53.5]} 8. Nxc4 {[%clk 0:02:49.9]}
8... O-O {[%clk 0:02:53.1]} 9. O-O {[%clk 0:02:49.4]} 9... Nbd7 {[%clk
0:02:42.2]} 10. a3 {[%clk 0:02:45.6]} 10... Bxc3 {[%clk 0:02:41]} 11. bxc3
{[%clk 0:02:44.8]} 11... Be4 {[%clk 0:02:41.1]} 12. f3 {[%clk 0:02:44.2]} 12...
Bg6 {[%clk 0:02:41.4]} 13. e4 {[%clk 0:02:42.6]} 13... Nb6 {[%clk 0:02:38.6]}
14. Ne5 {[%clk 0:02:24.1]} 14... Nfd7 {[%clk 0:02:37.1]} 15. Be3 {[%clk
0:02:20.2]} 15... Nxe5 {[%clk 0:02:32.4]} 16. dxe5 {[%clk 0:02:19.8]} 16... Nc4
{[%clk 0:02:30.8]} 17. Qd4 {[%clk 0:02:02]} 17... Qxd4 {[%clk 0:02:19.9]} 18.
Bxd4 {[%clk 0:02:01.8]} 18... b6 {[%clk 0:02:19.3]} 19. f4 {[%clk 0:02:00.3]}
19... c5 {[%clk 0:02:19.1]} 20. Bf2 {[%clk 0:02:00.3]} 20... Nd2 {[%clk
0:02:18.8]} 21. Rfe1 {[%clk 0:01:59.6]} 21... Rfd8 {[%clk 0:02:18.2]} 22. g4
{[%clk 0:01:58.7]} 22... h6 {[%clk 0:02:00.4]} 23. a4 {[%clk 0:01:51.2]} 23...
Rd3 {[%clk 0:01:58.5]} 24. f5 {[%clk 0:01:51.4]} 24... Bh7 {[%clk 0:01:57.9]}
25. a5 {[%clk 0:01:49.3]} 25... Rad8 {[%clk 0:01:57.2]} 26. axb6 {[%clk
0:01:38.6]} 26... axb6 {[%clk 0:01:57.1]} 27. Ra7 {[%clk 0:01:37.7]} 27... Rxc3
{[%clk 0:01:53.1]} 28. Bh4 {[%clk 0:01:31.4]} 28... Re8 {[%clk 0:01:47.3]} 29.
Rd1 {[%clk 0:01:24.7]} 29... Nc4 {[%clk 0:01:47.1]} 30. fxe6 {[%clk 0:01:19.8]}
30... fxe6 {[%clk 0:01:24.1]} 31. Rdd7 {[%clk 0:01:18.3]} 31... Rc1+ {[%clk
0:01:24.1]} 32. Kf2 {[%clk 0:01:16.6]} 32... Rf8+ {[%clk 0:00:26.1]} 33. Bf6
{[%clk 0:01:06.7]} 33... Rc2+ {[%clk 0:00:23.7]} 34. Kg3 {[%clk 0:00:56.2]}
34... Rxg2+ {[%clk 0:00:22.7]} 35. Kxg2 {[%clk 0:00:54.7]} 35... Bxe4+ {[%clk
0:00:21.5]} 36. Kg3 {[%clk 0:00:54.7]} 36... gxf6 {[%clk 0:00:21.5]} 37. Rg7+
{[%clk 0:00:49.6]} 37... Kh8 {[%clk 0:00:21.4]} 38. exf6 {[%clk 0:00:49.7]}
38... Rxf6 {[%clk 0:00:20.9]} 39. Rge7 {[%clk 0:00:48.8]} 39... Rf8 {[%clk
0:00:09.6]} 40. Rxe6 {[%clk 0:00:47.2]} 40... Bd3 {[%clk 0:00:08.8]} 41. h4
{[%clk 0:00:41.5]} 41... Kg8 {[%clk 0:00:06.2]} 42. g5 {[%clk 0:00:36.6]} 42...
hxg5 {[%clk 0:00:05.9]} 43. hxg5 {[%clk 0:00:36.6]} 43... Rf7 {[%clk 0:00:06.4]}
44. Ree7 {[%clk 0:00:33.8]} 44... Rxe7 {[%clk 0:00:06.2]} 45. Rxe7 {[%clk
0:00:33.5]} 45... b5 {[%clk 0:00:05]} 46. Rc7 {[%clk 0:00:33.3]} 46... Nd6
{[%clk 0:00:04.3]} 47. Kf4 {[%clk 0:00:28.3]} 47... Ne4 {[%clk 0:00:04.6]} 48.
Rd7 {[%clk 0:00:21.8]} 48... c4 {[%clk 0:00:04.2]} 49. g6 {[%clk 0:00:20.5]}
49... b4 {[%clk 0:00:04.7]} 50. Rb7 {[%clk 0:00:17.9]} 50... b3 {[%clk
0:00:04.8]} 51. Ke5 {[%clk 0:00:17.1]} 51... c3 {[%clk 0:00:05]} 52. Rxb3 {[%clk
0:00:16.1]} 52... c2 {[%clk 0:00:04.8]} 53. Rb8+ {[%clk 0:00:13.6]} 53... Kg7
{[%clk 0:00:05.3]} 54. Rc8 {[%clk 0:00:14]} 54... Kxg6 {[%clk 0:00:05.1]} 55.
Kd4 {[%clk 0:00:14]} 55... Nf2 {[%clk 0:00:05.4]} 56. Ke3 {[%clk 0:00:13]} 56...
Bf5 {[%clk 0:00:05.3]} 57. Kd2 {[%clk 0:00:12]} 57... Bxc8 {[%clk 0:00:04.9]}
58. Kxc2 {[%clk 0:00:11.8]} 58... Kf5 {[%clk 0:00:05.4]} 59. Kd2 {[%clk
0:00:11.7]} 59... Ne4+ {[%clk 0:00:06.1]} 60. Kc2 {[%clk 0:00:11.6]} 60... Ke5
{[%clk 0:00:06.6]} 61. Kd3 {[%clk 0:00:11.8]} 61... Ba6+ {[%clk 0:00:07.2]} 62.
Ke3 {[%clk 0:00:11.2]} 62... Bc4 {[%clk 0:00:07.6]} 63. Kf3 {[%clk 0:00:10.9]}
63... Kd4 {[%clk 0:00:08.1]} 64. Kf4 {[%clk 0:00:11.2]} 64... Be6 {[%clk
0:00:08.8]} 65. Kf3 {[%clk 0:00:10.9]} 65... Nc3 {[%clk 0:00:08.9]} 66. Kf4
{[%clk 0:00:11.3]} 66... Nd5+ {[%clk 0:00:09.3]} 67. Kg5 {[%clk 0:00:11.3]}
67... Ke5 {[%clk 0:00:09.1]} 68. Kg6 {[%clk 0:00:11.3]} 68... Nf4+ {[%clk
0:00:08.9]} 69. Kg5 {[%clk 0:00:10.5]} 69... Bf5 {[%clk 0:00:09.3]} 70. Kh6
{[%clk 0:00:07.6]} 70... Ke6 {[%clk 0:00:08.6]} 71. Kg5 {[%clk 0:00:07.2]} 71...
Nd5 {[%clk 0:00:08.9]} 72. Kh6 {[%clk 0:00:07.2]} 72... Kf6 {[%clk 0:00:08.7]}
73. Kh5 {[%clk 0:00:07.4]} 73... Nc3 {[%clk 0:00:09]} 74. Kh4 {[%clk 0:00:07.5]}
74... Ne4 {[%clk 0:00:09.4]} 75. Kh5 {[%clk 0:00:07.2]} 75... Bg6+ {[%clk
0:00:09.7]} 76. Kh6 {[%clk 0:00:07.5]} 76... Bf7 {[%clk 0:00:09.3]} 77. Kh7
{[%clk 0:00:07.5]} 77... Ng5+ {[%clk 0:00:09.6]} 78. Kh8 {[%clk 0:00:07.7]}
78... Ne6 {[%clk 0:00:07.1]} 79. Kh7 {[%clk 0:00:07.8]} 79... Nf4 {[%clk
0:00:05.2]} 80. Kh8 {[%clk 0:00:08.7]} 80... Ng6+ {[%clk 0:00:03]} 81. Kh7
{[%clk 0:00:09.6]} 81... Be6 {[%clk 0:00:03.3]} 82. Kh6 {[%clk 0:00:09.2]} 82...
Bg4 {[%clk 0:00:03.6]} 83. Kh7 {[%clk 0:00:08.9]} 83... Nf8+ {[%clk 0:00:03.8]}
84. Kh8 {[%clk 0:00:08.8]} 84... Ne6 {[%clk 0:00:03.1]} 85. Kh7 {[%clk
0:00:08.8]} 85... Kg5 {[%clk 0:00:02.9]} 86. Kh8 {[%clk 0:00:09.7]} 86... Bh5
{[%clk 0:00:02.9]} 87. Kh7 {[%clk 0:00:09.5]} 87... Bg6+ {[%clk 0:00:03.3]} 88.
Kh8 {[%clk 0:00:10.4]} 88... Kf6 {[%clk 0:00:03.7]} 89. Kg8 {[%clk 0:00:10.2]}
89... Ng5 {[%clk 0:00:04]} 90. Kh8 {[%clk 0:00:11.1]} 90... Nf7+ {[%clk
0:00:02.9]} 91. Kg8 {[%clk 0:00:11.2]} 91... Nh6+ {[%clk 0:00:03]} 92. Kh8
{[%clk 0:00:11.3]} 92... Bf7 {[%clk 0:00:03.3]} 93. Kh7 {[%clk 0:00:11.3]} 93...
Nf5 {[%clk 0:00:03.6]} 94. Kh8 {[%clk 0:00:12.2]} 94... Ne7 {[%clk 0:00:03.9]}
95. Kh7 {[%clk 0:00:12.1]} 95... Be8 {[%clk 0:00:04.3]} 96. Kh8 {[%clk 0:00:13]}
96... Kf5 {[%clk 0:00:04.4]} 97. Kg7 {[%clk 0:00:12.7]} 97... Ng6 {[%clk
0:00:04.2]} 98. Kh7 {[%clk 0:00:12.4]} 98... Kg5 {[%clk 0:00:03.8]} 99. Kg7
{[%clk 0:00:12.4]} 99... Bd7 {[%clk 0:00:03.4]} 100. Kh7 {[%clk 0:00:13.3]}
100... Be6 {[%clk 0:00:03.3]} 101. Kg7 {[%clk 0:00:14.2]} 101... Bd5 {[%clk
0:00:03.5]} 102. Kh7 {[%clk 0:00:14.3]} 102... Ne7 {[%clk 0:00:03.9]} 103. Kg7
{[%clk 0:00:14.2]} 103... Nf5+ {[%clk 0:00:04.4]} 104. Kh8 {[%clk 0:00:15.1]}
104... Kf6 {[%clk 0:00:04.5]} 105. Kh7 {[%clk 0:00:15.2]} 105... Bf7 {[%clk
0:00:04.6]} 106. Kh8 {[%clk 0:00:16.1]} 106... Bg6 {[%clk 0:00:03.1]} 107. Kg8
{[%clk 0:00:17]} 107... Kg5 {[%clk 0:00:02.8]} 108. Kh8 {[%clk 0:00:17.9]}
1/2-1/2

[Event "*** Titled Tuesday Blitz"]
[Site "Chess.com"]
[Date "2021.03.09"]
[Round "11"]
[White "Niktlt"]
[Black "Leonid_Starozhilov"]
[Result "1/2-1/2"]
[WhiteElo "2482"]
[BlackElo "2687"]
[TimeControl "180+1"]
[EndTime "12:03:33 PST"]
[Termination "Game drawn by agreement"]

1. c4 {[%clk 0:02:55.4]} 1... Nf6 {[%clk 0:03:00.1]} 2. Nc3 {[%clk 0:02:55.4]}
2... g6 {[%clk 0:03:00.5]} 3. g3 {[%clk 0:02:54.8]} 3... Bg7 {[%clk 0:03:00.4]}
4. Bg2 {[%clk 0:02:55.4]} 4... O-O {[%clk 0:03:01]} 5. d4 {[%clk 0:02:55.3]}
5... d6 {[%clk 0:03:01.5]} 6. Nf3 {[%clk 0:02:55.6]} 6... c6 {[%clk 0:02:59.6]}
7. O-O {[%clk 0:02:55.6]} 7... Bf5 {[%clk 0:03:00.2]} 8. b3 {[%clk 0:02:54.9]}
8... Ne4 {[%clk 0:02:57.7]} 9. Bb2 {[%clk 0:02:55.1]} 9... Nxc3 {[%clk
0:02:58.2]} 10. Bxc3 {[%clk 0:02:56]} 10... Be4 {[%clk 0:02:59.1]} 11. Bh3
{[%clk 0:02:53]} 11... Bxf3 {[%clk 0:02:58]} 12. exf3 {[%clk 0:02:53.9]} 12...
e6 {[%clk 0:02:58.7]} 13. f4 {[%clk 0:02:52.8]} 13... Nd7 {[%clk 0:02:58.2]}
1/2-1/2

[Event "*** Titled Tuesday Blitz"]
[Site "Chess.com"]
[Date "2021.03.09"]
[Round "11"]
[White "Promacherr"]
[Black "Omk124"]
[Result "0-1"]
[WhiteElo "2613"]
[BlackElo "2483"]
[TimeControl "180+1"]
[EndTime "12:05:25 PST"]
[Termination "Omk124 won by resignation"]

1. d4 {[%clk 0:03:00.9]} 1... Nf6 {[%clk 0:02:59.9]} 2. Nf3 {[%clk 0:03:00.6]}
2... g6 {[%clk 0:03:00]} 3. Bg5 {[%clk 0:03:01.2]} 3... Bg7 {[%clk 0:03:00.2]}
4. Nbd2 {[%clk 0:03:01.7]} 4... d5 {[%clk 0:03:00.3]} 5. c3 {[%clk 0:03:02]}
5... O-O {[%clk 0:03:00.6]} 6. e3 {[%clk 0:03:02.5]} 6... b6 {[%clk 0:03:00.5]}
7. Be2 {[%clk 0:03:03.1]} 7... Bb7 {[%clk 0:03:01]} 8. O-O {[%clk 0:03:03.6]}
8... Nbd7 {[%clk 0:03:01.5]} 9. Re1 {[%clk 0:03:04]} 9... h6 {[%clk 0:03:02]}
10. Bh4 {[%clk 0:03:03.5]} 10... c5 {[%clk 0:03:02.5]} 11. a4 {[%clk 0:03:03.6]}
11... a6 {[%clk 0:02:59.5]} 12. b4 {[%clk 0:03:03.9]} 12... cxb4 {[%clk
0:02:56.9]} 13. cxb4 {[%clk 0:03:04.8]} 13... Rc8 {[%clk 0:02:57]} 14. Qb3
{[%clk 0:03:04.6]} 14... e6 {[%clk 0:02:56.2]} 15. Rac1 {[%clk 0:03:04.8]} 15...
Qe7 {[%clk 0:02:56.1]} 16. Ne5 {[%clk 0:03:04.9]} 16... g5 {[%clk 0:02:54.4]}
17. Bg3 {[%clk 0:03:05.3]} 17... Nxe5 {[%clk 0:02:53.5]} 18. Bxe5 {[%clk
0:03:06.2]} 18... Ne4 {[%clk 0:02:51.2]} 19. Nxe4 {[%clk 0:03:05.1]} 19... Bxe5
{[%clk 0:02:51.5]} 20. dxe5 {[%clk 0:03:01]} 20... dxe4 {[%clk 0:02:51.3]} 21.
Qb2 {[%clk 0:02:58]} 21... Rfd8 {[%clk 0:02:47.2]} 22. h3 {[%clk 0:02:57.3]}
22... Qd7 {[%clk 0:02:45.4]} 23. a5 {[%clk 0:02:55.3]} 23... b5 {[%clk
0:02:44.1]} 24. Rxc8 {[%clk 0:02:51.8]} 24... Rxc8 {[%clk 0:02:44.2]} 25. Rd1
{[%clk 0:02:51.2]} 25... Bd5 {[%clk 0:02:44.4]} 26. Qd4 {[%clk 0:02:49.3]} 26...
Qc7 {[%clk 0:02:44.4]} 27. Kh2 {[%clk 0:02:28.9]} 27... Qc3 {[%clk 0:02:41.5]}
28. Qb6 {[%clk 0:02:18.7]} 28... Qxe5+ {[%clk 0:02:41.4]} 29. g3 {[%clk
0:02:18.3]} 29... Rc6 {[%clk 0:02:41.3]} 30. Qd8+ {[%clk 0:02:15.5]} 30... Kg7
{[%clk 0:02:41.8]} 31. Kg2 {[%clk 0:02:10.3]} 31... Rc2 {[%clk 0:02:40.7]} 32.
Bh5 {[%clk 0:02:10.5]} 32... Qb2 {[%clk 0:02:36.4]} 33. Rf1 {[%clk 0:02:10.1]}
33... Bc4 {[%clk 0:02:36.8]} 34. Qe7 {[%clk 0:02:07.4]} 34... Bxf1+ {[%clk
0:02:36.5]} 35. Kg1 {[%clk 0:02:08.3]} 35... Rxf2 {[%clk 0:02:35.2]} 0-1

[Event "*** Titled Tuesday Blitz"]
[Site "Chess.com"]
[Date "2021.03.09"]
[Round "11"]
[White "paulrusan"]
[Black "FredyMatsuura"]
[Result "1-0"]
[WhiteElo "2306"]
[BlackElo "2205"]
[TimeControl "180+1"]
[EndTime "12:05:45 PST"]
[Termination "paulrusan won by resignation"]

1. e4 {[%clk 0:03:00.1]} 1... c5 {[%clk 0:02:54.7]} 2. b4 {[%clk 0:03:00.1]}
2... cxb4 {[%clk 0:02:53.8]} 3. Bb2 {[%clk 0:03:00.5]} 3... d5 {[%clk 0:02:51]}
4. exd5 {[%clk 0:03:00.5]} 4... Nf6 {[%clk 0:02:50.9]} 5. Bb5+ {[%clk
0:02:59.2]} 5... Bd7 {[%clk 0:02:50.9]} 6. Bc4 {[%clk 0:02:59.6]} 6... b5 {[%clk
0:02:48.8]} 7. Bb3 {[%clk 0:02:59.9]} 7... a5 {[%clk 0:02:48.2]} 8. a4 {[%clk
0:03:00.1]} 8... bxa4 {[%clk 0:02:47.4]} 9. Rxa4 {[%clk 0:02:58.5]} 9... Bxa4
{[%clk 0:02:40.4]} 10. Bxa4+ {[%clk 0:02:58.7]} 10... Nbd7 {[%clk 0:02:38.6]}
11. Nf3 {[%clk 0:02:59.2]} 11... Nxd5 {[%clk 0:02:37.9]} 12. Ne5 {[%clk
0:02:57.3]} 12... Nb6 {[%clk 0:02:36.8]} 13. Qf3 {[%clk 0:02:55.1]} 13... Qc7
{[%clk 0:01:38.6]} 14. Bxd7+ {[%clk 0:02:52.8]} 14... Nxd7 {[%clk 0:01:38.5]}
15. Qxa8+ {[%clk 0:02:52]} 15... Qb8 {[%clk 0:01:38.8]} 16. Qxa5 {[%clk
0:02:30.3]} 1-0

[Event "*** Titled Tuesday Blitz"]
[Site "Chess.com"]
[Date "2021.03.09"]
[Round "11"]
[White "niki_2003"]
[Black "Chamal_Gedgafov"]
[Result "0-1"]
[WhiteElo "2033"]
[BlackElo "2216"]
[TimeControl "180+1"]
[EndTime "12:05:48 PST"]
[Termination "Chamal_Gedgafov won by resignation"]

1. e4 {[%clk 0:02:59.7]} 1... c5 {[%clk 0:02:59.3]} 2. Nf3 {[%clk 0:02:59.1]}
2... e6 {[%clk 0:02:59.7]} 3. d4 {[%clk 0:02:59.1]} 3... cxd4 {[%clk 0:03:00.6]}
4. Nxd4 {[%clk 0:02:56.7]} 4... a6 {[%clk 0:03:01]} 5. Nc3 {[%clk 0:02:56.8]}
5... Qc7 {[%clk 0:03:01.4]} 6. g3 {[%clk 0:02:53.6]} 6... Nc6 {[%clk 0:02:56.1]}
7. Bg2 {[%clk 0:02:51.3]} 7... b6 {[%clk 0:02:55.3]} 8. e5 {[%clk 0:02:49.4]}
8... Bb7 {[%clk 0:02:54.5]} 9. Nxc6 {[%clk 0:02:49.2]} 9... Bxc6 {[%clk
0:02:53.8]} 10. Ne4 {[%clk 0:02:48.9]} 10... Qxe5 {[%clk 0:02:49.6]} 11. Bf4
{[%clk 0:02:48.7]} 11... Qa5+ {[%clk 0:02:45.4]} 12. Bd2 {[%clk 0:02:47.3]}
12... Qb5 {[%clk 0:02:31.1]} 13. a4 {[%clk 0:02:41.1]} 13... Qxb2 {[%clk
0:02:23.8]} 14. Bc3 {[%clk 0:02:37.4]} 14... Qxc3+ {[%clk 0:02:20.8]} 15. Nxc3
{[%clk 0:02:36.3]} 15... Bxg2 {[%clk 0:02:21.7]} 16. Rg1 {[%clk 0:02:36.3]}
16... Bc6 {[%clk 0:02:18.9]} 17. a5 {[%clk 0:02:34.2]} 17... b5 {[%clk
0:02:18.3]} 18. Na2 {[%clk 0:02:32.9]} 18... Nf6 {[%clk 0:02:13.1]} 19. f3
{[%clk 0:02:30.9]} 19... Be7 {[%clk 0:02:10.3]} 20. Qd3 {[%clk 0:02:29.8]} 20...
O-O {[%clk 0:02:08]} 21. O-O-O {[%clk 0:02:29.8]} 21... Bd5 {[%clk 0:02:02.2]}
22. Nc3 {[%clk 0:02:28.8]} 22... Bc4 {[%clk 0:02:02.3]} 23. Qd4 {[%clk
0:02:26.6]} 23... d5 {[%clk 0:01:59.7]} 24. f4 {[%clk 0:02:21.8]} 24... Rfc8
{[%clk 0:01:54.5]} 25. g4 {[%clk 0:02:20.3]} 25... Bc5 {[%clk 0:01:52.4]} 26.
Qd2 {[%clk 0:02:19.1]} 26... Bb4 {[%clk 0:01:52.1]} 27. Qd4 {[%clk 0:02:18.1]}
27... Bxa5 {[%clk 0:01:49.2]} 0-1